bitfinex/quotes_BTCUSD_20230831
["timestamp","ask_amount","ask_price","bid_price","bid_amount"]
[1693492873311,0.024,27143.0,27141.0,0.02656047]
[1693492873515,0.012,27143.0,27141.0,0.02656047]
[1693492873765,0.012,27143.0,27141.0,0.07682535]
[1693492874595,0.012,27143.0,27142.0,0.05001406]
[1693492874848,0.024,27143.0,27142.0,0.05001406]
[1693492875517,0.012,27143.0,27142.0,0.05001406]
[1693492875900,0.024,27143.0,27142.0,0.05001406]
[1693492876277,0.2742,27145.0,27142.0,0.05001406]
[1693492876690,0.2742,27145.0,27142.0,0.05201406]
[1693492876691,0.024,27143.0,27142.0,0.05201406]
[1693492877057,0.012,27143.0,27142.0,0.05101406]
[1693492877270,0.2742,27145.0,27142.0,0.05001406]
[1693492877500,0.3112,27145.0,27142.0,0.05301406]
[1693492877952,0.2742,27145.0,27142.0,0.05001406]
[1693492878233,0.2742,27145.0,27143.0,0.1088]
[1693492878234,0.1654,27145.0,27143.0,0.1088]
[1693492878399,0.9968,27148.0,27143.0,0.13233605]
[1693492878569,0.9968,27148.0,27143.0,0.5000169]
[1693492879272,0.037,27145.0,27143.0,0.5000169]
[1693492879493,0.9968,27148.0,27144.0,0.04830815]
[1693492879731,1.0338,27148.0,27144.0,0.04830815]
[1693492879932,0.037,27145.0,27144.0,0.04830815]
[1693492880345,0.038,27145.0,27144.0,0.04830815]
[1693492880568,0.1513,27147.0,27144.0,0.04830815]
[1693492880778,0.1513,27147.0,27144.0,0.05030815]
[1693492880981,0.1513,27147.0,27144.0,0.05230815]
[1693492881180,0.1513,27147.0,27144.0,0.11763943]
[1693492881387,0.1513,27147.0,27144.0,0.11563943]
[1693492881815,0.1513,27147.0,27145.0,0.02879821]
[1693492882900,0.1513,27147.0,27144.0,0.114]
[1693492883087,0.012,27147.0,27145.0,0.1088]
[1693492883260,0.012,27147.0,27145.0,0.17290169]
[1693492883638,0.012,27147.0,27145.0,0.2125562]
[1693492883848,0.012,27147.0,27145.0,0.17390169]
[1693492884029,0.024,27147.0,27145.0,0.17490169]
[1693492884331,0.024,27147.0,27145.0,0.22830141]
[1693492884552,0.024,27147.0,27146.0,0.03155052]
[1693492885610,0.012,27147.0,27146.0,0.03155052]
[1693492885789,0.024,27147.0,27146.0,0.03255052]
[1693492886605,0.024,27147.0,27146.0,0.06041331]
[1693492886814,0.024,27147.0,27146.0,0.11155617]
[1693492887016,0.012,27147.0,27146.0,0.11155617]
[1693492887217,0.012,27147.0,27146.0,0.06041331]
[1693492887421,0.024,27147.0,27146.0,0.10458368]
[1693492888453,0.024,27147.0,27146.0,0.13105898]
[1693492888928,0.024,27147.0,27146.0,0.45556946]
[1693492889132,0.024,27147.0,27146.0,0.49634381]
[1693492889560,0.024,27147.0,27146.0,0.56436946]
[1693492889783,0.024,27147.0,27146.0,0.61728832]
[1693492889994,0.012,27147.0,27146.0,0.72336946]
[1693492890206,0.9968,27153.0,27149.0,0.02]
[1693492890467,0.2,27156.0,27152.0,0.1088]
[1693492890674,0.1664,27154.0,27152.0,0.15844809]
[1693492891091,0.1664,27154.0,27152.0,0.04964809]
[1693492892339,0.1664,27154.0,27153.0,0.05349662]
[1693492893978,0.1664,27154.0,27153.0,0.05449662]
[1693492894187,0.1664,27154.0,27153.0,0.07579109]
[1693492894395,0.1664,27154.0,27153.0,0.07679109]
[1693492894803,0.1664,27154.0,27153.0,0.05549662]
[1693492896366,0.1664,27154.0,27153.0,0.002]
[1693492896574,0.49115253,27154.0,27153.0,0.002]
[1693492901988,0.62051413,27154.0,27153.0,0.002]
[1693492903240,0.62051413,27154.0,27153.0,0.02846861]
[1693492904058,0.49115253,27154.0,27153.0,0.02846861]
[1693492904182,0.62046662,27154.0,27153.0,0.02846861]
[1693492914740,0.29571409,27154.0,27153.0,0.02846861]
[1693492915089,0.29571409,27154.0,27153.0,0.06839778]
[1693492919511,0.12931409,27154.0,27153.0,0.06839778]
[1693492920173,0.12931409,27155.0,27153.0,0.06839778]
[1693492920411,0.12931409,27154.0,27153.0,0.06839778]
[1693492920885,0.12931409,27155.0,27153.0,0.06839778]
[1693492921095,0.12931409,27155.0,27153.0,0.06739778]
[1693492921299,0.14131409,27155.0,27153.0,0.06839778]
[1693492921509,0.12931409,27154.0,27153.0,0.06839778]
[1693492921717,0.12931409,27154.0,27153.0,0.02846861]
[1693492921940,0.40583279,27154.0,27153.0,0.02846861]
[1693492922807,0.40583279,27154.0,27153.0,0.02746861]
[1693492923193,0.40583279,27154.0,27153.0,0.02646861]
[1693492923417,0.40583279,27154.0,27153.0,0.02846861]
[1693492923631,0.40583279,27154.0,27153.0,0.001]
[1693492923799,0.40583279,27154.0,27153.0,0.03552471]
[1693492924175,0.40583279,27154.0,27153.0,0.03652471]
[1693492924389,0.52809786,27154.0,27153.0,0.03652471]
[1693492924611,0.30613737,27154.0,27153.0,0.03652471]
[1693492925037,0.56687104,27154.0,27153.0,0.03652471]
[1693492925284,0.56687104,27154.0,27153.0,0.002]
[1693492925858,0.49884776,27154.0,27153.0,0.002]
[1693492926580,0.23811409,27154.0,27153.0,0.002]
[1693492927137,0.48082692,27154.0,27153.0,0.002]
[1693492927338,0.23811409,27154.0,27153.0,0.002]
[1693492927951,0.50513031,27154.0,27153.0,0.03043111]
[1693492928383,0.50513031,27154.0,27153.0,0.002]
[1693492928593,0.48032676,27154.0,27153.0,0.002]
[1693492929281,0.63232676,27154.0,27153.0,0.002]
[1693492931046,0.72064621,27154.0,27153.0,0.002]
[1693492931250,0.72064621,27154.0,27153.0,0.02945229]
[1693492932403,0.85312538,27154.0,27153.0,0.02945229]
[1693492932597,0.72064621,27154.0,27153.0,0.02945229]
[1693492933022,0.76480593,27154.0,27153.0,0.02945229]
[1693492933384,0.72058195,27154.0,27153.0,0.02945229]
[1693492933997,0.76480593,27154.0,27153.0,0.02945229]
[1693492934541,0.74480593,27154.0,27153.0,0.02945229]
[1693492934756,0.83299998,27154.0,27153.0,0.02945229]
[1693492934954,0.63593055,27154.0,27153.0,0.02945229]
[1693492935809,0.68006515,27154.0,27153.0,0.02945229]
[1693492936442,0.68012246,27154.0,27153.0,0.02945229]
[1693492936641,0.68012246,27154.0,27153.0,0.002]
[1693492937116,0.26176621,27154.0,27153.0,0.36968085]
[1693492937343,0.12931409,27154.0,27153.0,0.44730325]
[1693492937556,0.12931409,27154.0,27153.0,0.47464096]
[1693492937758,0.12431409,27154.0,27153.0,0.47464096]
[1693492938537,0.08830329,27155.0,27153.0,0.47464096]
[1693492938748,0.08830329,27155.0,27154.0,0.0583441]
[1693492938951,0.21678021,27155.0,27154.0,0.0583441]
[1693492939354,0.12847692,27155.0,27154.0,0.0583441]
[1693492939582,0.12847799,27155.0,27154.0,0.0583441]
[1693492939737,0.15247799,27155.0,27154.0,0.10262838]
[1693492940087,0.14047799,27155.0,27154.0,0.10262838]
[1693492940289,0.14047799,27155.0,27154.0,0.10362838]
[1693492940467,0.012,27155.0,27154.0,0.10362838]
[1693492940668,0.024,27155.0,27154.0,0.10462838]
[1693492943767,0.024,27155.0,27154.0,0.04628428]
[1693492944416,0.024,27155.0,27154.0,0.002]
[1693492944417,0.15237065,27155.0,27154.0,0.002]
[1693492948319,0.15237065,27155.0,27154.0,0.02926437]
[1693492948673,0.15237065,27155.0,27154.0,0.002]
[1693492951775,0.4220526,27155.0,27154.0,0.002]
[1693492957065,0.5725526,27155.0,27154.0,0.002]
[1693492958227,0.66085589,27155.0,27154.0,0.002]
[1693492959268,0.5725526,27155.0,27154.0,0.002]
[1693492959646,0.66085589,27155.0,27154.0,0.002]
[1693492961635,0.55309237,27155.0,27154.0,0.002]
[1693492961847,0.68554449,27155.0,27154.0,0.002]
[1693492962026,0.55309237,27155.0,27154.0,0.002]
[1693492962229,0.68554449,27155.0,27154.0,0.002]
[1693492963044,0.63242606,27155.0,27154.0,0.002]
[1693492963243,0.54412277,27155.0,27154.0,0.002]
[1693492966124,0.72071847,27155.0,27154.0,0.002]
[1693492966574,0.54412277,27155.0,27154.0,0.002]
[1693492966979,0.72071847,27155.0,27154.0,0.002]
[1693492967779,0.58826635,27155.0,27154.0,0.002]
[1693492968621,1.22721122,27155.0,27154.0,0.002]
[1693492968883,1.26821122,27155.0,27154.0,0.002]
[1693492969092,1.27025122,27155.0,27154.0,0.002]
[1693492969302,1.0567066,27155.0,27154.0,0.002]
[1693492969494,1.0567066,27155.0,27144.0,0.00099286]
[1693492969495,0.08,27153.0,27144.0,0.00099286]
[1693492969621,0.1088,27145.0,27144.0,0.00099286]
[1693492969818,0.25587234,27145.0,27144.0,0.00099286]
[1693492970035,0.25587234,27145.0,27144.0,0.02650292]
[1693492970245,0.28210228,27149.0,27144.0,0.02650292]
[1693492970246,0.1088,27146.0,27144.0,0.02650292]
[1693492970456,0.1088,27146.0,27141.0,0.02878748]
[1693492970663,0.14707234,27145.0,27141.0,0.36768085]
[1693492970864,0.1088,27147.0,27141.0,0.59501366]
[1693492971070,0.25587234,27147.0,27144.0,0.003]
[1693492971284,0.1088,27147.0,27144.0,0.003]
[1693492971482,0.24131463,27146.0,27144.0,0.05265254]
[1693492972103,0.004,27145.0,27144.0,0.08865254]
[1693492972306,0.004,27145.0,27144.0,0.08565254]
[1693492972713,0.24131463,27146.0,27144.0,0.04965254]
[1693492972915,0.24331463,27146.0,27144.0,0.06665254]
[1693492973127,0.24531463,27146.0,27144.0,0.06665254]
[1693492973331,0.24331463,27146.0,27144.0,0.06665254]
[1693492973552,0.24131463,27146.0,27144.0,0.04965254]
[1693492973756,0.006,27145.0,27144.0,0.10965254]
[1693492973969,0.003,27145.0,27144.0,0.07965254]
[1693492974194,0.003,27145.0,27144.0,0.09565254]
[1693492975593,0.003,27145.0,27144.0,0.07965254]
[1693492976185,0.003,27145.0,27144.0,0.09665254]
[1693492976563,0.003,27145.0,27144.0,0.047]
[1693492976761,0.003,27145.0,27144.0,0.03]
[1693492977192,0.006,27145.0,27144.0,0.06]
[1693492978308,0.006,27145.0,27144.0,0.08653787]
[1693492978612,0.22590126,27145.0,27144.0,0.08653787]
[1693492979323,0.25937139,27145.0,27144.0,0.08653787]
[1693492979993,0.36817139,27145.0,27144.0,0.08653787]
[1693492980758,0.14827013,27145.0,27144.0,0.08653787]
[1693492980961,0.1148,27145.0,27144.0,0.08653787]
[1693492981788,0.21244,27145.0,27144.0,0.08653787]
[1693492981988,0.1348,27145.0,27144.0,0.06]
[1693492982193,0.20194,27145.0,27144.0,0.06]
[1693492982400,0.2023,27145.0,27144.0,0.06]
[1693492982608,0.23747,27145.0,27144.0,0.06]
[1693492982814,0.22943,27145.0,27139.0,0.0009987]
[1693492983017,0.1088,27141.0,27139.0,0.0009987]
[1693492983441,0.1088,27141.0,27140.0,0.0265475]
[1693492984055,0.1088,27141.0,27136.0,0.22082395]
[1693492984266,0.1088,27141.0,27139.0,0.037]
[1693492984267,0.25887234,27141.0,27139.0,0.037]
[1693492984480,0.25887234,27141.0,27137.0,0.36768085]
[1693492984481,0.1088,27141.0,27137.0,0.45601043]
[1693492984710,0.1088,27143.0,27138.0,0.04202669]
[1693492984930,0.02,27142.0,27138.0,0.04202669]
[1693492985558,0.004,27141.0,27139.0,0.036]
[1693492985775,0.004,27141.0,27140.0,0.037]
[1693492985776,0.007,27141.0,27140.0,0.037]
[1693492986017,0.003,27141.0,27140.0,0.037]
[1693492986262,0.02,27142.0,27138.0,0.04202669]
[1693492986475,0.023,27142.0,27138.0,0.07302669]
[1693492987012,0.023,27142.0,27138.0,0.07202669]
[1693492987274,0.004,27141.0,27140.0,0.036]
[1693492988081,0.004,27141.0,27140.0,0.07729918]
[1693492988340,0.023,27142.0,27140.0,0.7333048]
[1693492988341,0.003,27142.0,27140.0,0.7333048]
[1693492988585,0.003,27142.0,27141.0,0.6556009]
[1693492988839,0.003,27142.0,27141.0,2.19765906]
[1693492989169,0.002,27142.0,27141.0,2.24182386]
[1693492989585,0.9968,27146.0,27141.0,2.24182386]
[1693492989822,0.9968,27146.0,27144.0,0.1088]
[1693492990065,0.3485,27151.0,27145.0,0.04708629]
[1693492990301,0.02,27150.0,27145.0,0.04708629]
[1693492990751,0.1797,27150.0,27145.0,0.04708629]
[1693492992995,0.2497,27150.0,27145.0,0.05308629]
[1693492993212,0.23332204,27149.0,27145.0,0.05308629]
[1693492993691,0.2497,27150.0,27146.0,0.02862438]
[1693492995011,0.2137,27150.0,27146.0,0.02862438]
[1693492995219,0.1797,27150.0,27146.0,0.02862438]
[1693492995423,0.029,27149.0,27147.0,0.04814321]
[1693492995632,0.058,27149.0,27147.0,0.04814321]
[1693492995836,0.1797,27150.0,27147.0,0.04814321]
[1693492996254,0.2497,27150.0,27147.0,0.04814321]
[1693492996476,0.2157,27150.0,27147.0,0.04814321]
[1693492996723,0.029,27149.0,27147.0,0.05014321]
[1693492996946,0.029,27149.0,27147.0,0.04814321]
[1693492997168,0.2157,27150.0,27147.0,0.05114321]
[1693492997610,0.1957,27150.0,27147.0,0.003]
[1693492997839,0.036,27150.0,27147.0,0.1118]
[1693492998047,0.036,27150.0,27148.0,0.05067252]
[1693492998255,0.07,27150.0,27148.0,0.05067252]
[1693492998474,0.034,27150.0,27148.0,0.05067252]
[1693492999093,0.029,27149.0,27147.0,0.04717266]
[1693492999310,0.9968,27156.0,27148.0,0.47648085]
[1693492999514,0.034,27150.0,27149.0,0.06097758]
[1693492999744,0.069,27150.0,27149.0,0.51678074]
[1693493000173,1.1492,27156.0,27149.0,0.51678074]
[1693493000383,0.9968,27156.0,27152.0,0.1088]
[1693493000590,1.0308,27156.0,27152.0,0.1088]
[1693493001000,0.02,27155.0,27152.0,0.1088]
[1693493001609,0.1766,27155.0,27152.0,0.1088]
[1693493002280,0.1926,27155.0,27152.0,0.1098]
[1693493002484,0.1926,27155.0,27154.0,0.1088]
[1693493002485,0.016,27155.0,27154.0,0.1088]
[1693493002978,0.016,27155.0,27154.0,0.15435264]
[1693493003237,0.016,27155.0,27154.0,0.20210073]
[1693493003493,0.032,27155.0,27154.0,0.20210073]
[1693493003747,0.016,27155.0,27154.0,0.20210073]
[1693493004006,0.2961,27160.0,27154.0,0.20210073]
[1693493004210,0.31420363,27159.0,27154.0,0.20210073]
[1693493004463,0.295,27159.0,27154.0,0.09330073]
[1693493005166,0.016,27155.0,27154.0,0.09430073]
[1693493005379,0.222,27159.0,27154.0,0.09430073]
[1693493005593,0.02,27158.0,27155.0,0.03088007]
[1693493005798,0.02,27158.0,27154.0,0.003]
[1693493006015,0.27587234,27158.0,27152.0,0.00098977]
[1693493006230,0.14707234,27157.0,27154.0,0.003]
[1693493006453,0.012,27155.0,27151.0,0.10518977]
[1693493006664,0.15907234,27155.0,27151.0,0.21398977]
[1693493006868,0.15907234,27155.0,27151.0,0.18278783]
[1693493007073,0.15907234,27155.0,27154.0,0.003]
[1693493007074,0.14707234,27155.0,27154.0,0.003]
[1693493007286,0.1088,27156.0,27154.0,0.003]
[1693493007502,0.00100729,27154.0,27149.0,0.21591502]
[1693493007714,0.14707234,27153.0,27149.0,0.58459065]
[1693493007922,0.14707234,27153.0,27149.0,0.72195742]
[1693493008136,0.00100729,27154.0,27150.0,0.06861841]
[1693493008346,0.44101351,27153.0,27150.0,0.06861841]
[1693493008974,0.1646,27153.0,27151.0,0.001]
[1693493009179,0.00100729,27154.0,27151.0,0.001]
[1693493009392,0.16560729,27154.0,27151.0,0.08035758]
[1693493011228,0.40430795,27154.0,27150.0,0.02742535]
[1693493011620,0.269663,27153.0,27150.0,0.02742535]
[1693493013040,0.269663,27153.0,27150.0,0.03842535]
[1693493013453,0.269663,27153.0,27150.0,0.09605172]
[1693493018126,0.269663,27153.0,27150.0,0.12490838]
[1693493019241,0.269663,27153.0,27150.0,0.05042535]
[1693493019572,0.27067029,27153.0,27150.0,0.05042535]
[1693493019800,0.37947029,27153.0,27150.0,0.05042535]
[1693493020241,0.00100729,27152.0,27150.0,0.05042535]
[1693493020452,0.00100729,27151.0,27150.0,0.05042535]
[1693493021280,0.25592208,27151.0,27150.0,0.05042535]
[1693493021897,0.25592208,27151.0,27150.0,0.02742535]
[1693493022106,0.25692208,27151.0,27150.0,0.037]
[1693493022306,0.25692208,27151.0,27150.0,0.061]
[1693493022737,0.00200729,27151.0,27150.0,0.061]
[1693493023162,0.00200729,27151.0,27150.0,0.06361654]
[1693493023372,0.00400729,27151.0,27150.0,0.10061654]
[1693493032544,0.22732997,27151.0,27150.0,0.10061654]
[1693493035036,0.00400729,27151.0,27150.0,0.10061654]
[1693493035247,0.00400729,27151.0,27150.0,0.14311512]
[1693493035485,0.00400729,27151.0,27150.0,0.17520089]
[1693493035923,0.00400729,27151.0,27150.0,0.14311512]
[1693493036767,0.00400729,27151.0,27150.0,0.2312116]
[1693493040446,0.00400729,27151.0,27150.0,0.36335633]
[1693493041372,0.00400729,27151.0,27150.0,0.27525985]
[1693493041577,0.00400729,27151.0,27150.0,0.71078908]
[1693493042219,0.00400729,27151.0,27150.0,0.23145937]
[1693493044578,0.00400729,27151.0,27150.0,0.14311512]
[1693493046067,0.00400729,27151.0,27150.0,0.10061654]
[1693493046697,0.00400729,27151.0,27150.0,0.14575899]
[1693493056725,0.29384521,27151.0,27150.0,0.10061654]
[1693493058553,0.00400729,27151.0,27150.0,0.10061654]
[1693493059931,0.00400729,27151.0,27150.0,0.14073109]
[1693493067189,0.003,27151.0,27150.0,0.1656842]
[1693493067624,0.003,27151.0,27150.0,0.12556965]
[1693493067842,0.003,27151.0,27150.0,0.6020505]
[1693493068055,0.003,27151.0,27150.0,1.00938746]
[1693493069730,0.003,27151.0,27150.0,1.48866667]
[1693493070146,0.003,27151.0,27150.0,1.14156657]
[1693493070562,0.003,27151.0,27150.0,1.57703506]
[1693493070765,0.003,27151.0,27150.0,1.48865643]
[1693493070971,0.003,27151.0,27150.0,2.27701675]
[1693493071179,0.003,27151.0,27150.0,2.18865643]
[1693493071393,0.003,27151.0,27150.0,1.8415475]
[1693493071602,0.003,27151.0,27150.0,2.27701122]
[1693493071777,0.003,27151.0,27150.0,2.41701122]
[1693493071992,0.003,27151.0,27150.0,2.32865166]
[1693493072334,0.003,27151.0,27150.0,1.62865166]
[1693493072562,0.001,27151.0,27150.0,1.59165166]
[1693493072967,0.00100729,27157.0,27151.0,0.05899271]
[1693493073174,0.00100729,27157.0,27155.0,0.1088]
[1693493073824,0.00100729,27157.0,27156.0,0.02743976]
[1693493075879,0.00100729,27157.0,27154.0,0.1088]
[1693493076146,0.00500729,27157.0,27156.0,0.001]
[1693493076352,0.00300729,27157.0,27156.0,0.001]
[1693493076742,0.00500729,27157.0,27156.0,0.001]
[1693493081797,0.22220969,27157.0,27156.0,0.001]
[1693493083227,0.22220969,27157.0,27156.0,0.02844789]
[1693493084688,0.27081066,27157.0,27156.0,0.02844789]
[1693493085477,0.29081066,27157.0,27156.0,0.02844789]
[1693493085931,0.55008911,27157.0,27156.0,0.02844789]
[1693493086140,0.76381026,27157.0,27156.0,0.02844789]
[1693493086353,0.76387026,27157.0,27156.0,0.001]
[1693493086563,0.77053026,27157.0,27156.0,0.001]
[1693493086769,1.05075465,27157.0,27156.0,0.001]
[1693493086992,1.04421465,27157.0,27156.0,0.001]
[1693493087199,1.04439465,27157.0,27156.0,0.001]
[1693493087403,1.19583465,27157.0,27156.0,0.001]
[1693493087643,1.19427465,27157.0,27156.0,0.001]
[1693493087846,1.19547465,27157.0,27156.0,0.001]
[1693493088049,1.19793465,27157.0,27156.0,0.001]
[1693493088261,1.20117465,27157.0,27156.0,0.001]
[1693493088467,1.20057465,27157.0,27156.0,0.001]
[1693493088703,1.19751465,27157.0,27156.0,0.001]
[1693493088883,1.19860599,27157.0,27156.0,0.001]
[1693493089034,1.70782386,27157.0,27156.0,0.001]
[1693493089241,1.74152172,27157.0,27156.0,0.001]
[1693493089444,1.74404172,27157.0,27156.0,0.001]
[1693493089645,1.74182172,27157.0,27156.0,0.001]
[1693493089857,1.73990172,27157.0,27156.0,0.001]
[1693493090156,1.73984172,27157.0,27156.0,0.001]
[1693493090351,1.73778172,27157.0,27156.0,0.001]
[1693493090578,1.99706172,27157.0,27156.0,0.001]
[1693493090811,2.4407616,27157.0,27156.0,0.004]
[1693493091024,2.4407616,27157.0,27147.0,0.00099331]
[1693493091025,0.00100729,27149.0,27147.0,0.00099331]
[1693493091265,0.51738733,27148.0,27147.0,0.00099331]
[1693493091463,0.51738733,27148.0,27143.0,0.08827844]
[1693493091590,0.00100729,27147.0,27143.0,0.36866436]
[1693493091802,0.14707234,27146.0,27143.0,0.36866436]
[1693493092219,0.00100729,27147.0,27143.0,0.36866436]
[1693493092440,0.14807963,27147.0,27143.0,0.36866436]
[1693493092640,0.00100729,27147.0,27143.0,0.36866436]
[1693493092845,0.1088,27146.0,27143.0,0.00098351]
[1693493093055,0.10980729,27146.0,27143.0,0.00098351]
[1693493093908,0.10980729,27146.0,27143.0,0.03798351]
[1693493094099,0.24438169,27145.0,27143.0,0.00098351]
[1693493094440,0.24438169,27145.0,27143.0,0.07498351]
[1693493094640,0.24438169,27145.0,27143.0,0.074]
[1693493094859,0.24438169,27145.0,27143.0,0.037]
[1693493095336,0.24438169,27145.0,27143.0,0.074]
[1693493095337,0.24638169,27145.0,27143.0,0.074]
[1693493095550,0.1088,27144.0,27143.0,0.074]
[1693493096172,0.1088,27144.0,27143.0,0.037]
[1693493096371,0.1088,27144.0,27143.0,0.074]
[1693493096786,0.1088,27144.0,27143.0,0.037]
[1693493096997,0.1108,27144.0,27143.0,0.058]
[1693493097240,0.1108,27144.0,27143.0,0.021]
[1693493097661,0.1128,27144.0,27143.0,0.058]
[1693493098072,0.1108,27144.0,27143.0,0.021]
[1693493098280,0.1108,27144.0,27143.0,0.04741137]
[1693493098509,0.39910233,27144.0,27143.0,0.05841137]
[1693493098937,0.46005418,27144.0,27143.0,0.05841137]
[1693493099631,0.39910233,27144.0,27143.0,0.05841137]
[1693493102227,0.1108,27144.0,27143.0,0.05841137]
[1693493102661,0.1108,27144.0,27143.0,0.10836411]
[1693493104206,0.002,27144.0,27143.0,0.10836411]
[1693493105910,0.002,27144.0,27143.0,0.05841137]
[1693493106120,0.22609473,27144.0,27143.0,0.05841137]
[1693493107718,0.27547493,27144.0,27143.0,0.05841137]
[1693493112224,0.38427493,27144.0,27143.0,0.05841137]
[1693493112442,0.43324687,27144.0,27143.0,0.05841137]
[1693493112663,0.45324687,27144.0,27143.0,0.05841137]
[1693493113571,0.18118749,27144.0,27143.0,0.05841137]
[1693493115045,0.42425592,27144.0,27143.0,0.05841137]
[1693493115565,0.46544466,27144.0,27143.0,0.05841137]
[1693493121817,0.18118749,27144.0,27143.0,0.05841137]
[1693493125074,0.54886834,27144.0,27143.0,0.05841137]
[1693493125305,0.73818834,27144.0,27143.0,0.05841137]
[1693493125669,0.99371491,27144.0,27143.0,0.05841137]
[1693493125848,0.98921491,27144.0,27143.0,0.05841137]
[1693493126063,0.98717491,27144.0,27143.0,0.05841137]
[1693493126262,0.98771491,27144.0,27143.0,0.05841137]
[1693493126474,0.98759491,27144.0,27143.0,0.05841137]
[1693493126680,0.98633491,27144.0,27143.0,0.05841137]
[1693493126899,0.98591491,27144.0,27143.0,0.05841137]
[1693493127107,0.98567491,27144.0,27143.0,0.05841137]
[1693493127307,0.98561491,27144.0,27143.0,0.05841137]
[1693493127511,0.98615491,27144.0,27143.0,0.05841137]
[1693493127730,1.38063491,27144.0,27143.0,0.05841137]
[1693493127868,1.38075491,27144.0,27143.0,0.05841137]
[1693493128071,1.38099491,27144.0,27143.0,0.05841137]
[1693493128290,1.53006891,27144.0,27143.0,0.05841137]
[1693493128489,1.52994891,27144.0,27143.0,0.05841137]
[1693493128692,1.52736891,27144.0,27143.0,0.05841137]
[1693493128891,1.52796891,27144.0,27143.0,0.05841137]
[1693493129148,1.52820891,27144.0,27143.0,0.05841137]
[1693493129355,1.52626891,27144.0,27143.0,0.03741137]
[1693493129578,1.52632891,27144.0,27143.0,0.03741137]
[1693493129786,1.56332891,27144.0,27143.0,0.04041137]
[1693493129992,1.56392891,27144.0,27143.0,0.04041137]
[1693493130194,1.56692891,27144.0,27143.0,0.02941137]
[1693493130404,1.60834891,27144.0,27143.0,0.02941137]
[1693493130602,2.04526891,27144.0,27143.0,0.02941137]
[1693493130819,2.04526891,27144.0,27143.0,0.03241137]
[1693493130820,1.94616891,27144.0,27143.0,0.03241137]
[1693493131040,2.07306891,27144.0,27143.0,0.03241137]
[1693493131255,2.07882891,27144.0,27143.0,0.03241137]
[1693493131466,2.05378891,27144.0,27143.0,0.02941137]
[1693493131685,2.08014891,27144.0,27143.0,0.03241137]
[1693493131887,1.94496891,27144.0,27143.0,0.03241137]
[1693493132060,1.94016891,27144.0,27143.0,0.03241137]
[1693493132269,1.94034891,27144.0,27143.0,0.04625686]
[1693493132468,1.93642891,27144.0,27143.0,0.04625686]
[1693493132670,1.93594891,27144.0,27143.0,0.04625686]
[1693493132915,1.93498891,27144.0,27143.0,0.04625686]
[1693493133072,1.93420891,27144.0,27143.0,0.04625686]
[1693493133330,1.93498891,27144.0,27143.0,0.04625686]
[1693493133702,1.93408891,27144.0,27143.0,0.04625686]
[1693493133903,1.93522891,27144.0,27143.0,0.04625686]
[1693493134086,1.94044891,27144.0,27143.0,0.04625686]
[1693493134236,2.06818891,27144.0,27143.0,0.04625686]
[1693493134446,2.06926891,27144.0,27143.0,0.04625686]
[1693493134645,2.07142891,27144.0,27143.0,0.04625686]
[1693493134843,2.07334891,27144.0,27143.0,0.04625686]
[1693493135072,2.07826891,27144.0,27143.0,0.04625686]
[1693493135286,2.07358891,27144.0,27143.0,0.04625686]
[1693493135475,2.07022891,27144.0,27143.0,0.04625686]
[1693493135688,2.07226891,27144.0,27143.0,0.04625686]
[1693493135895,2.07250891,27144.0,27143.0,0.04625686]
[1693493136073,2.07730891,27144.0,27143.0,0.04625686]
[1693493136287,2.07418891,27144.0,27143.0,0.04625686]
[1693493136487,2.07682891,27144.0,27143.0,0.04625686]
[1693493136685,2.07502891,27144.0,27143.0,0.04625686]
[1693493136886,2.07490891,27144.0,27143.0,0.04625686]
[1693493137102,2.07190891,27144.0,27143.0,0.04625686]
[1693493137275,2.07514891,27144.0,27143.0,0.04625686]
[1693493137479,2.07910891,27144.0,27143.0,0.04625686]
[1693493137681,2.10902368,27144.0,27143.0,0.04625686]
[1693493137876,1.97054368,27144.0,27143.0,0.04625686]
[1693493138084,1.96286368,27144.0,27143.0,0.04625686]
[1693493138283,1.96214368,27144.0,27143.0,0.04625686]
[1693493138530,1.96178368,27144.0,27143.0,0.04625686]
[1693493138747,1.96196368,27144.0,27143.0,0.04625686]
[1693493138926,1.95914368,27144.0,27143.0,0.04625686]
[1693493139145,1.96004368,27144.0,27143.0,0.04625686]
[1693493139350,1.96076368,27144.0,27143.0,0.04625686]
[1693493139551,1.96178368,27144.0,27143.0,0.04625686]
[1693493139760,1.96196368,27144.0,27143.0,0.04625686]
[1693493139955,1.96214368,27144.0,27143.0,0.04625686]
[1693493140284,1.96148368,27144.0,27143.0,0.04625686]
[1693493140463,1.96154368,27144.0,27143.0,0.04625686]
[1693493140667,1.96742368,27144.0,27143.0,0.04625686]
[1693493140841,1.96256368,27144.0,27143.0,0.04625686]
[1693493141048,1.96328368,27144.0,27143.0,0.04625686]
[1693493141204,1.96418368,27144.0,27143.0,0.04625686]
[1693493141403,2.11382368,27144.0,27143.0,0.04625686]
[1693493141614,2.11994368,27144.0,27143.0,0.04625686]
[1693493141813,2.35152368,27144.0,27143.0,0.04625686]
[1693493142015,2.34372368,27144.0,27143.0,0.04625686]
[1693493142233,2.33520368,27144.0,27143.0,0.04625686]
[1693493142474,2.33832368,27144.0,27143.0,0.04625686]
[1693493142679,2.33856368,27144.0,27143.0,0.04625686]
[1693493142888,2.34144368,27144.0,27143.0,0.04625686]
[1693493143191,2.34096368,27144.0,27143.0,0.04625686]
[1693493143481,2.34084368,27144.0,27143.0,0.04625686]
[1693493143697,2.34000368,27144.0,27143.0,0.04625686]
[1693493143868,2.33976368,27144.0,27143.0,0.006]
[1693493144073,2.32620368,27144.0,27143.0,0.006]
[1693493144287,2.32296368,27144.0,27143.0,0.006]
[1693493144561,2.31912368,27144.0,27143.0,0.006]
[1693493144740,2.31900368,27144.0,27143.0,0.006]
[1693493144869,2.31948368,27144.0,27143.0,0.006]
[1693493145278,2.32032368,27144.0,27143.0,0.006]
[1693493145485,2.32248368,27144.0,27143.0,0.006]
[1693493145683,2.33364368,27144.0,27143.0,0.006]
[1693493145927,2.34072368,27144.0,27143.0,0.006]
[1693493146136,2.34420368,27144.0,27143.0,0.006]
[1693493146503,2.34372368,27144.0,27143.0,0.006]
[1693493146716,2.34264368,27144.0,27143.0,0.006]